fUST/lending_fUST_20251002
["ID","MTS","AMOUNT","RATE_DAILY","PERIOD"]
[388839556,1759411850715,-700.91856384,0.00028003,8]
[388839557,1759411850725,-516.0,0.00028019,2]
[388839558,1759411850735,-800.0,0.00028023,2]
[388839559,1759411850746,-2100.0,0.0002806,5]
[388839560,1759411850755,-200.0,0.000281,7]
[388839561,1759411850765,-1058.58,0.0002814,2]
[388839562,1759411850774,-3284.2741358,0.0002816,5]
[388839563,1759411850784,-3500.0,0.0002816,5]
[388839564,1759411850793,-150.0,0.00028187,2]
[388839565,1759411850802,-500.0,0.00028214,7]
[388839566,1759411850812,-1058.58,0.0002828,2]
[388839567,1759411850821,-516.0,0.00028293,2]
[388839568,1759411850830,-4487.46,0.000283,2]
[388839569,1759411850840,-151.0,0.000283,7]
[388839570,1759411850849,-151.0,0.000283,7]
[388839571,1759411850859,-700.91856384,0.00028348,9]
[388839572,1759411850868,-700.91856384,0.00028348,9]
[388839573,1759411850878,-10836.05096556,0.000284,2]
[388839574,1759411850888,-1058.58,0.0002842,2]
[388839575,1759411850898,-1299.28442424,0.00028493,5]
[388839576,1759411850907,-193550.67501725,0.000285,7]
[388839577,1759411850916,-897.03274505,0.000285,7]
[388839578,1759411850925,-800.0,0.00028517,2]
[388839579,1759411850934,-150.0,0.00028543,2]
[388839580,1759411850943,-1058.58,0.0002856,2]
[388839581,1759411850952,-516.0,0.00028567,2]
[388839582,1759411850962,-5302.02,0.000286,2]
[388839583,1759411850972,-2400.0,0.00028608,5]
[388839584,1759411850981,-700.91856384,0.00028693,10]
[388839585,1759411850990,-700.91856384,0.00028693,10]
[388839586,1759411851000,-1058.58,0.000287,2]
[388839587,1759411851009,-4000.0,0.00028708,5]
[388839588,1759411851019,-1007.5736619,0.0002876,5]
[388839589,1759411851029,-1000.0,0.0002876,5]
[388839590,1759411851039,-1003.88652113,0.0002876,5]
[388839591,1759411851048,-1000.0,0.0002876,5]
[388839592,1759411851057,-500.0,0.00028767,7]
[388839593,1759411851066,-500.0,0.00028767,7]
[388839594,1759411851076,-5000.0,0.00028778,2]
[388839595,1759411851085,-1058.58,0.0002884,2]
[388839596,1759411851094,-516.0,0.00028841,2]
[388839597,1759411851104,-2000.0,0.00028842,5]
[388839598,1759411851113,-410.0,0.0002885,2]
[388839599,1759411851123,-864.0,0.00028865,30]
[388839600,1759411851132,-150.0,0.00028899,2]
[388839601,1759411851141,-1049.49999902,0.000289,2]
[388839602,1759411851152,-10836.05096555,0.00028946,2]
[388839603,1759411851162,-241.7885184,0.0002896,120]
[388839604,1759411851171,-1058.58,0.0002898,2]
[388839605,1759411851181,-4512.91089893,0.0002899,2]
[388839606,1759411851191,-879.76838596,0.00029,2]
[388839607,1759411851200,-261.98,0.00029,30]
[388839608,1759411851210,-550.0,0.00029,120]
[388839609,1759411851219,-3044.71557221,0.00029,60]
[388839610,1759411851228,-500.78001152,0.00029,7]
[388839611,1759411851238,-293.43242757,0.00029,7]
[388839612,1759411851247,-160.0,0.00029,7]
[388839613,1759411851256,-234.00747223,0.00029,7]
[388839614,1759411851266,-500.0,0.00029002,7]
[388839615,1759411851275,-1613.0,0.00029003,2]
[388839616,1759411851284,-2700.0,0.0002901,7]
[388839617,1759411851293,-700.91856384,0.00029038,11]
[388839618,1759411851302,-700.91856384,0.00029038,11]
[388839619,1759411851311,-176.75575821,0.00029058,2]
[388839620,1759411851320,-187.0,0.00029084,120]
[388839621,1759411851329,-232.057509,0.00029092,7]
[388839622,1759411851338,-232.057509,0.00029092,7]
[388839623,1759411851347,-232.057509,0.00029092,7]
[388839624,1759411851357,-232.057509,0.00029092,7]
[388839625,1759411851367,-200.0,0.000291,7]
[388839626,1759411851375,-1528.0675527,0.0002911,2]
[388839627,1759411851384,-516.0,0.00029115,2]
[388839628,1759411851394,-1058.58,0.0002912,30]
[388839629,1759411851403,-153.0,0.00029142,30]
[388839630,1759411851412,-1119.40126106,0.00029156,5]
[388839631,1759411851421,-151.0,0.0002916,7]
[388839632,1759411851430,-210.0,0.00029193,2]
[388839633,1759411851440,-210.0,0.00029193,2]
[388839634,1759411851450,-150.0,0.00029255,2]
[388839635,1759411851464,-4500.0,0.00029256,5]
[388839636,1759411851473,-1058.58,0.0002926,30]
[388839637,1759411851483,-700.91856384,0.00029383,11]
[388839638,1759411851494,-700.91856384,0.00029383,11]
[388839639,1759411851503,-516.0,0.00029389,2]
[388839640,1759411851514,-2012.94490691,0.0002939,5]
[388839641,1759411851523,-1058.58,0.000294,30]
[388839642,1759411851535,-153.0,0.00029423,2]
[388839643,1759411851544,-153.0,0.00029423,2]
[388839644,1759411851553,-153.0,0.00029423,2]
[388839645,1759411851562,-153.0,0.00029423,2]
[388839646,1759411851571,-153.0,0.00029423,2]
[388839647,1759411851580,-153.0,0.00029426,2]
[388839648,1759411851589,-153.0,0.00029426,2]
[388839649,1759411851598,-153.0,0.00029434,2]
[388839650,1759411851607,-153.0,0.00029434,2]
[388839651,1759411851616,-153.0,0.00029434,2]
[388839652,1759411851625,-153.0,0.00029434,2]
[388839653,1759411851634,-153.0,0.00029434,2]
[388839654,1759411851644,-153.0,0.00029437,2]
[388839655,1759411851654,-153.0,0.00029437,2]
[388839656,1759411851664,-153.0,0.00029447,2]
[388839657,1759411851673,-153.0,0.00029447,2]
[388839658,1759411851682,-153.0,0.00029447,2]
[388839659,1759411851691,-153.0,0.00029447,2]
[388839660,1759411851701,-153.0,0.00029447,2]
[388839661,1759411851710,-153.0,0.00029449,2]
[388839662,1759411851719,-153.0,0.00029449,2]
[388839663,1759411851728,-222.43683054,0.0002947,20]
[388839664,1759411851737,-10836.05096555,0.00029493,2]
[388839665,1759411851746,-15000.0,0.000295,120]
[388839666,1759411851756,-5000.0,0.000296,7]
[388839667,1759411851765,-150.0,0.00029611,2]
[388839668,1759411851774,-516.0,0.00029663,2]
[388839669,1759411851783,-173.742508,0.00029695,7]
[388839670,1759411851793,-4000.0,0.00029695,4]
[388839671,1759411851802,-5302.02,0.000297,2]
[388839672,1759411851812,-1031.5424077,0.00029704,2]
[388839673,1759411851821,-700.91856384,0.00029728,12]
[388839674,1759411851831,-700.91856384,0.00029728,12]
[388839675,1759411851840,-207.82768456,0.00029804,5]
[388839676,1759411851850,-799.42330452,0.000299,15]
[388839677,1759411851859,-516.0,0.00029936,2]
[388839678,1759411851868,-150.0,0.00029967,2]
[388839679,1759411851877,-524.39615808,0.0003,2]
[388839680,1759411851886,-405.75123919,0.0003,10]
[388839681,1759411851895,-165.46,0.0003,5]
[388839682,1759411851904,-2079.06723104,0.0003,2]
[388839683,1759411851913,-1576.85390365,0.0003,10]
[388839684,1759411851923,-5000.0,0.0003,4]
[388839685,1759411851932,-500.0,0.0003,120]
[388839686,1759411851940,-19188.94505387,0.0003,2]
[388839687,1759411851949,-158.93530402,0.0003,60]
[388839688,1759411851959,-152.31754008,0.0003,120]
[388839689,1759411851967,-7275.04127609,0.0003,2]
[388839690,1759411851977,-26000.0,0.0003,2]
[388839691,1759411851986,-30000.0,0.0003,10]
[388839692,1759411851995,-30000.0,0.0003,10]
[388839693,1759411852003,-10431.0,0.0003,30]
[388839694,1759411852012,-2390.0,0.0003,120]
[388839695,1759411852021,-1186.31249901,0.0003,2]
[388839696,1759411852029,-1185.0,0.0003,10]
[388839697,1759411852038,-2000.0,0.0003,7]
[388839698,1759411852047,-67850.90175235,0.0003,15]
[388839699,1759411852057,-293.43242757,0.0003,120]
[388839700,1759411852066,-620.82793119,0.0003,30]
[388839701,1759411852075,-100000.10101183,0.0003,30]
[388839702,1759411852084,-176.145,0.0003,2]
[388839703,1759411852093,-234.00747223,0.0003,30]
[388839704,1759411852102,-293.43242757,0.0003,30]
[388839705,1759411852111,-175.927,0.0003,2]
[388839706,1759411852119,-234.00747223,0.0003,10]
[388839707,1759411852128,-293.43242757,0.0003,10]
[388839708,1759411852138,-159.894,0.0003,2]
[388839709,1759411852147,-151.0,0.0003,7]
[388839710,1759411852157,-160.0,0.0003,30]
[388839711,1759411852166,-232.057509,0.0003,7]
[388839712,1759411852175,-232.057509,0.0003,7]
[388839713,1759411852184,-232.057509,0.0003,7]
[388839714,1759411852193,-232.057518,0.0003,7]
[388839715,1759411852202,-1038.47,0.0003,30]
[388839716,1759411852211,-500.0,0.0003,120]
[388839717,1759411852220,-1519.793835,0.0003,2]
[388839718,1759411852230,-10836.05096555,0.00030039,2]
[388839719,1759411852239,-700.91856384,0.00030072,13]
[388839720,1759411852248,-284.88333656,0.0003013,2]
[388839721,1759411852257,-500.02,0.00030136,60]
[388839722,1759411852267,-528.49053026,0.00030136,60]
[388839723,1759411852276,-500.0,0.00030136,2]
[388839724,1759411852287,-500.0,0.00030136,2]
[388839725,1759411852308,-500.0,0.00030136,2]
[388839726,1759411852318,-500.0,0.00030136,2]
[388839727,1759411852327,-247.33644669,0.00030136,2]
[388839728,1759411852337,-500.0,0.00030136,60]
[388839729,1759411852346,-500.0,0.00030136,60]
[388839730,1759411852356,-500.0,0.00030136,60]
[388839731,1759411852366,-500.0,0.00030136,60]
[388839732,1759411852375,-500.0,0.00030136,60]
[388839733,1759411852385,-500.0,0.00030136,60]
[388839734,1759411852394,-500.0,0.00030136,60]
[388839735,1759411852403,-500.0,0.00030136,60]
[388839736,1759411852412,-500.0,0.00030136,60]
[388839737,1759411852421,-500.0,0.00030136,60]
[388839738,1759411852431,-500.0,0.00030136,60]
[388839739,1759411852440,-500.0,0.00030136,60]
[388839740,1759411852450,-500.0,0.00030136,60]
[388839741,1759411852463,-500.0,0.00030136,60]
[388839742,1759411852472,-500.0,0.00030136,60]
[388839743,1759411852481,-500.0,0.00030136,60]
[388839744,1759411852490,-565.40529599,0.00030136,60]
[388839745,1759411852501,-1029.96,0.00030136,60]
[388839746,1759411852510,-1029.96,0.00030136,60]
[388839747,1759411852520,-1029.96,0.00030136,60]
[388839748,1759411852531,-1029.96,0.00030136,60]
[388839749,1759411852541,-1029.96,0.00030136,60]
[388839750,1759411852552,-1029.96,0.00030136,60]
[388839751,1759411852561,-1029.96,0.00030136,60]
[388839752,1759411852572,-1029.96,0.00030136,60]
[388839753,1759411852582,-1029.96,0.00030136,60]
[388839754,1759411852592,-1029.96,0.00030136,60]
[388839755,1759411852601,-1029.96,0.00030136,60]
[388839756,1759411852611,-1029.96,0.00030136,60]
[388839757,1759411852620,-1029.96,0.00030136,60]
[388839758,1759411852630,-1029.96,0.00030136,60]
[388839759,1759411852639,-1029.96,0.00030136,60]
[388839760,1759411852651,-1029.96,0.00030136,60]
[388839761,1759411852660,-1029.96,0.00030136,60]
[388839762,1759411852671,-1029.96,0.00030136,60]
[388839763,1759411852680,-1029.96,0.00030136,60]
[388839764,1759411852689,-1029.96,0.00030136,60]
[388839765,1759411852698,-1029.96,0.00030136,60]
[388839766,1759411852708,-1029.96,0.00030136,60]
[388839767,1759411852718,-1029.96,0.00030136,60]
[388839768,1759411852728,-1030.12241812,0.00030136,60]
[388839769,1759411852737,-301.90950735,0.00030136,60]
[388839770,1759411852747,-500.0,0.00030136,60]
[388839771,1759411852756,-500.0,0.00030136,60]
[388839772,1759411852766,-500.0,0.00030136,60]
[388839773,1759411852775,-500.0,0.00030136,60]
[388839774,1759411852785,-500.0,0.00030136,60]
[388839775,1759411852794,-500.0,0.00030136,60]
[388839776,1759411852804,-500.0,0.00030136,60]
[388839777,1759411852814,-500.0,0.00030136,60]
[388839778,1759411852823,-500.0,0.00030136,60]
[388839779,1759411852832,-500.0,0.00030136,60]
[388839780,1759411852842,-500.0,0.00030136,60]
[388839781,1759411852851,-500.0,0.00030136,60]
[388839782,1759411852860,-500.0,0.00030136,60]
[388839783,1759411852869,-500.0,0.00030136,60]
[388839784,1759411852878,-500.0,0.00030136,60]
[388839785,1759411852888,-500.0,0.00030136,60]
[388839786,1759411852898,-500.0,0.00030136,60]
[388839787,1759411852908,-500.0,0.00030136,60]
[388839788,1759411852917,-500.0,0.00030136,60]
[388839789,1759411852927,-602.29537749,0.00030136,60]
[388839790,1759411852937,-500.0,0.00030136,60]
[388839791,1759411852947,-500.0,0.00030136,60]
[388839792,1759411852957,-500.0,0.00030136,60]
[388839793,1759411852966,-500.0,0.00030136,60]
[388839794,1759411852976,-482.5776849,0.00030136,60]
[388839795,1759411852985,-500.0,0.00030136,60]
[388839796,1759411852994,-500.0,0.00030136,60]
[388839797,1759411853003,-500.0,0.00030136,60]
[388839798,1759411853013,-500.0,0.00030136,60]
[388839799,1759411853023,-500.0,0.00030136,60]
[388839800,1759411853034,-500.0,0.00030136,60]
[388839801,1759411853044,-500.0,0.00030136,60]
[388839802,1759411853054,-500.0,0.00030136,60]
[388839803,1759411853065,-500.0,0.00030136,60]
[388839804,1759411853076,-500.0,0.00030136,60]
[388839805,1759411853086,-500.0,0.00030136,60]
[388839806,1759411853097,-500.0,0.00030136,60]
[388839807,1759411853106,-500.0,0.00030136,60]
[388839808,1759411853116,-500.0,0.00030136,60]
[388839809,1759411853126,-500.0,0.00030136,60]
[388839810,1759411853136,-500.0,0.00030136,60]
[388839811,1759411853147,-500.0,0.00030136,60]
[388839812,1759411853162,-500.0,0.00030136,60]
[388839813,1759411853173,-500.0,0.00030136,60]
[388839814,1759411853183,-500.0,0.00030136,60]
[388839815,1759411853193,-500.0,0.00030136,60]
[388839816,1759411853203,-500.0,0.00030136,60]
[388839817,1759411853213,-500.54329961,0.00030136,60]
[388839818,1759411853224,-520.0,0.00030136,3]
[388839819,1759411853234,-500.0,0.00030136,7]
[388839820,1759411853244,-500.0,0.00030137,120]
[388839821,1759411853254,-1040.000975,0.00030137,120]
[388839822,1759411853265,-234.2788304,0.00030137,120]
[388839823,1759411853276,-330.24452141,0.00030137,2]
[388839824,1759411853287,-1322.49685981,0.00030137,30]
[388839825,1759411853298,-261.09394294,0.00030137,5]
[388839826,1759411853308,-378.0,0.00030154,120]
[388839827,1759411853320,-29674.81653523,0.0003017,120]
[388839828,1759411853330,-450.0,0.00030194,2]
[388839829,1759411853339,-963.14628502,0.000302,2]
[388839830,1759411853349,-152.0,0.000302,120]
[388839831,1759411853360,-4487.46,0.000302,2]
[388839832,1759411853378,-516.0,0.0003021,2]
[388839833,1759411853388,-3111.50263256,0.00030212,5]
[388839834,1759411853398,-150.0,0.00030323,2]
[388839835,1759411853408,-184.67692687,0.0003034,2]
[388839836,1759411853418,-520.0,0.0003041,3]
[388839837,1759411853428,-500.0,0.0003041,7]
[388839838,1759411853438,-700.91856384,0.00030417,14]
[388839839,1759411853450,-157.0,0.00030438,40]
[388839840,1759411853464,-539.74285416,0.0003046,30]
[388839841,1759411853474,-516.0,0.00030484,2]
[388839842,1759411853485,-187.0,0.00030538,120]
[388839843,1759411853497,-10836.05096555,0.00030585,2]
[388839844,1759411853507,-150.0,0.00030679,2]
[388839845,1759411853517,-520.0,0.00030684,3]
[388839846,1759411853528,-500.0,0.00030684,7]
[388839847,1759411853538,-639.92,0.00030684,14]
[388839848,1759411853548,-516.0,0.00030758,2]
[388839849,1759411853558,-700.91856384,0.00030762,14]
[388839850,1759411853567,-46470.81800051,0.0003079,30]
[388839851,1759411853577,-234.00747223,0.000309,30]
[388839852,1759411853587,-293.43242757,0.000309,30]
[388839853,1759411853597,-234.00747223,0.000309,10]
[388839854,1759411853607,-293.43242757,0.000309,10]
[388839855,1759411853617,-520.0,0.00030958,3]
[388839856,1759411853627,-500.0,0.00030958,7]
[388839857,1759411853637,-303.16573996,0.0003099,2]
[388839858,1759411853647,-233.9640895,0.00031,120]
[388839859,1759411853657,-244.99,0.00031,120]
[388839860,1759411853668,-293.43242757,0.00031,120]
[388839861,1759411853678,-234.00747223,0.00031,120]
[388839862,1759411853688,-5302.02,0.00031,2]
[388839863,1759411853699,-160.0,0.00031,120]
[388839864,1759411853708,-523.2879264,0.00031032,2]
[388839865,1759411853717,-150.0,0.00031035,2]
[388839866,1759411853727,-451.62,0.00031035,15]
[388839867,1759411853737,-700.91856384,0.00031107,15]
[388839868,1759411853747,-30000.0,0.0003112,2]
[388839869,1759411853759,-160.04951788,0.00031129,15]
[388839870,1759411853769,-451.62,0.00031129,15]
[388839871,1759411853778,-451.62,0.00031135,15]
[388839872,1759411853788,-520.0,0.00031232,3]
[388839873,1759411853799,-500.0,0.00031232,7]
[388839874,1759411853808,-639.92,0.00031232,15]
[388839875,1759411853818,-451.62,0.00031235,15]
[388839876,1759411853828,-451.62,0.00031271,15]
[388839877,1759411853838,-1001.75620567,0.00031285,2]
[388839878,1759411853847,-40942.82198378,0.0003129,10]
[388839879,1759411853857,-451.62,0.00031335,15]
[388839880,1759411853867,-150.0,0.00031391,2]
[388839881,1759411853877,-300.0,0.000314,120]
[388839882,1759411853888,-451.62,0.00031435,15]
[388839883,1759411853899,-700.91856384,0.00031452,16]
[388839884,1759411853909,-18692.995,0.000315,5]
[388839885,1759411853919,-520.0,0.00031506,3]
[388839886,1759411853928,-500.0,0.00031506,7]
[388839887,1759411853939,-1031.5424077,0.0003151,2]
[388839888,1759411853949,-451.62,0.00031535,15]
[388839889,1759411853959,-2258.0,0.00031618,2]
[388839890,1759411853969,-451.62,0.00031635,15]
[388839891,1759411853979,-378.0,0.00031661,120]
[388839892,1759411853990,-451.62,0.00031735,15]
[388839893,1759411854000,-150.0,0.00031747,2]
[388839894,1759411854010,-1000.0,0.00031752,30]
[388839895,1759411854020,-520.0,0.0003178,3]
[388839896,1759411854030,-500.0,0.0003178,7]
[388839897,1759411854039,-639.92,0.0003178,16]
[388839898,1759411854049,-700.91856384,0.00031797,17]
[388839899,1759411854059,-234.00747223,0.000318,30]
[388839900,1759411854069,-293.43242757,0.000318,30]
[388839901,1759411854080,-152.0,0.000318,120]
[388839902,1759411854090,-247.1863195,0.00031825,30]
[388839903,1759411854102,-161.93,0.00031831,15]
[388839904,1759411854112,-451.62,0.00031835,15]
[388839905,1759411854123,-410.0,0.0003185,2]
[388839906,1759411854134,-22543.3720572,0.000319,2]
[388839907,1759411854146,-558453.00530356,0.000319,30]
[388839975,1759412182609,180.0,0.00028767,120]
[388839977,1759412215461,195.47,0.00028767,120]
[388839986,1759412280369,188.62,0.00015105,2]
[388839987,1759412280660,188.62,0.00015105,2]
[388839988,1759412280949,188.6,0.00015105,2]
[388840023,1759412576423,1000.0,0.000284,120]
[388840164,1759412796612,1000.0,0.00028767,120]
[388840165,1759412805182,1000.0,0.00028767,120]
[388840166,1759412813384,1000.0,0.00028767,120]
[388840167,1759412821303,1000.0,0.00028767,120]
[388840168,1759412827817,1000.0,0.00028767,120]
[388840169,1759412834612,1000.0,0.00028767,120]
[388840171,1759412848804,1000.0,0.00028767,120]
[388840283,1759413038021,-351.27555648,0.00020612,2]
[388840286,1759413038033,-703.52979223,0.00020612,2]
[388840297,1759413038135,-3945.19465129,0.00020612,2]
[388840299,1759413038144,-165.04515382,0.0002103,2]
[388840301,1759413038154,-410.0,0.00021231,2]
[388840303,1759413038163,-150.0,0.00021231,2]
[388840305,1759413038173,-293.43242757,0.00021495,2]
[388840307,1759413038182,-160.0,0.00021495,2]
[388840309,1759413038191,-234.00747223,0.00021498,2]
[388840312,1759413038201,-517.3351203,0.00023161,2]
[388840315,1759413038210,-1200.0,0.000235,2]
[388840318,1759413038219,-410.0,0.00024231,2]
[388840320,1759413038229,-150.0,0.00024231,2]
[388840322,1759413038238,-300.0,0.00024499,2]
[388840324,1759413038248,-2000.0,0.000245,2]
[388840326,1759413038257,-1300.0,0.000245,3]
[388840328,1759413038267,-500.0,0.0002452,9]
[388840330,1759413038277,-150.0,0.00025,10]
[388840332,1759413038286,-500.0,0.00025,9]
[388840334,1759413038295,-2428.27986643,0.00025,2]
[388840336,1759413038304,-2000.0,0.000255,2]
[388840338,1759413038314,-1380.0,0.000255,4]
[388840340,1759413038323,-180.627606,0.00026358,2]
[388840342,1759413038332,-1090.9,0.000265,2]
[388840344,1759413038342,-420.0,0.00026554,2]
[388840345,1759413038351,-1320.32,0.00026749,2]
[388840373,1759413038620,-1500.0,0.00026849,2]
[388840375,1759413038630,-410.0,0.00027231,2]
[388840377,1759413038640,-478.341,0.00027317,16]
[388840379,1759413038649,-652.0,0.000275,2]
[388840381,1759413038658,-1000.02,0.00028,2]
[388840383,1759413038668,-1000.02,0.0002814,2]
[388840385,1759413038679,-1561.91725752,0.00028623,22]
[388840387,1759413038689,-587.0,0.00028782,2]
[388840390,1759413038699,-384.03124927,0.00029231,2]
[388840392,1759413038708,-600.0,0.0003,120]
[388840394,1759413038717,-520.0,0.00030136,3]
[388840395,1759413038726,-500.0,0.00030136,7]
[388840398,1759413038735,-780.000731,0.00030137,120]
[388840400,1759413038745,-319.41781821,0.00030137,2]
[388840402,1759413038755,-500.0,0.00030137,120]
[388840404,1759413038764,-410.0,0.00030231,2]
[388840405,1759413038774,-500.0,0.00030237,7]
[388840407,1759413038784,-520.0,0.0003041,3]
[388840409,1759413038795,-500.0,0.0003041,7]
[388840411,1759413038806,-521.75266104,0.00030684,3]
[388840413,1759413038824,-559.93,0.00030684,14]
[388840415,1759413038834,-500.0,0.00030684,7]
[388840416,1759413038846,-500.0,0.00030845,7]
[388840417,1759413038855,-1593.87,0.0003087,10]
[388840418,1759413038866,-1649.36237642,0.0003087,10]
[388840541,1759413040270,-9493.62268985,0.0002093,2]
[388840834,1759413043438,-1319.58,0.0002093,2]
[388840835,1759413043500,-9039.00226247,0.0002093,2]
[388840836,1759413043510,-36116.5718149,0.00028527,2]
[388840837,1759413043519,-983.5,0.0002914,15]
[388840839,1759413043528,-380.16762358,0.0003087,10]
[388840841,1759413043538,-154.63364626,0.00030879,2]
[388840843,1759413043547,-182.60920067,0.00030879,2]
[388840845,1759413043557,-154077.66858202,0.0003088,2]
[388840847,1759413043567,-500.0,0.00030958,7]
[388840849,1759413043576,-500.0,0.00030973,5]
[388840851,1759413043586,-618118.815354,0.0003098,2]
[388840853,1759413043595,-24673.1438471,0.0003098,2]
[388840855,1759413043604,-100000.0,0.0003099,2]
[388840857,1759413043613,-1000.0,0.00031,120]
[388840859,1759413043622,-823.0,0.00031196,2]
[388840861,1759413043632,-559.93,0.00031232,15]
[388840863,1759413043640,-500.0,0.00031232,7]
[388840866,1759413043649,-390.49,0.00031254,10]
[388840868,1759413043659,-162.3399399,0.00031293,30]
[388840870,1759413043668,-189.1492399,0.00031293,30]
[388840872,1759413043677,-296.9209673,0.00031293,30]
[388840873,1759413043688,-586.5092015,0.00031293,30]
[388840875,1759413043697,-500.0,0.000314,120]
[388840877,1759413043706,-500.0,0.00031506,7]
[388840879,1759413043716,-1000.0,0.00031521,5]
[388840881,1759413043725,-37009.7157706,0.00031548,2]
[388840883,1759413043734,-176.75575821,0.00031573,2]
[388840885,1759413043743,-12336.5719235,0.00031648,2]
[388840887,1759413043752,-559.93,0.0003178,16]
[388840889,1759413043762,-377.90463817,0.0003178,7]
[388840891,1759413043771,-24673.1438471,0.0003178,2]
[388840893,1759413043780,-98692.5753882,0.0003179,2]
[388840895,1759413043790,-18804.9698011,0.000318,2]
[388840897,1759413043799,-370000.0,0.000318,2]
[388840899,1759413043809,-5418.02548282,0.000318,2]
[388840901,1759413043822,-37009.7157706,0.0003189,2]
[388840903,1759413043831,-154077.66858202,0.0003189,2]
[388840905,1759413043840,-127112.52975214,0.000319,30]
[388840907,1759413043851,-293.43242757,0.000319,30]
[388840909,1759413043860,-1060.4,0.000319,2]
[388840911,1759413043869,-1346.24,0.000319,2]
[388840913,1759413043878,-1111.23,0.000319,120]
[388840914,1759413043887,-441.8055,0.000319,2]
[388840916,1759413043898,-441.8055,0.000319,2]
[388840918,1759413043907,-159.96532131,0.00031925,15]
[388840920,1759413043917,-161.93,0.00031931,15]
[388840922,1759413043926,-451.62,0.00031935,15]
[388840924,1759413043937,-1444.0,0.00031945,120]
[388840926,1759413043946,-560.73485118,0.0003195,17]
[388840928,1759413043955,-5418.02548277,0.00031957,2]
[388840930,1759413043964,-12336.5719235,0.0003197,2]
[388840932,1759413043973,-500.0,0.00031973,5]
[388840934,1759413043982,-154.22,0.00032,15]
[388840936,1759413043991,-179.19,0.00032,15]
[388840938,1759413044000,-200.0,0.00032,120]
[388840940,1759413044009,-7000.0,0.00032,19]
[388840942,1759413044018,-151.80050122,0.00032,120]
[388840944,1759413044027,-178.2,0.00032,120]
[388840946,1759413044036,-161.93,0.00032031,15]
[388840948,1759413044045,-451.62,0.00032035,15]
[388840950,1759413044054,-187.0,0.00032065,120]
[388840952,1759413044064,-1500.0,0.00032068,5]
[388840954,1759413044076,-194.73013312,0.00032069,30]
[388840956,1759413044085,-154.22,0.000321,15]
[388840958,1759413044094,-179.20660913,0.000321,15]
[388840960,1759413044103,-150.0,0.00032103,2]
[388840962,1759413044112,-5203.86860253,0.00032107,36]
[388840963,1759413044121,-5418.02548277,0.00032114,2]
[388840965,1759413044130,-161.93,0.00032131,15]
[388840967,1759413044139,-451.62,0.00032135,15]
[388840969,1759413044148,-700.91856384,0.00032141,17]
[388840971,1759413044157,-516.13990572,0.00032181,2]
[388840973,1759413044166,-154.22,0.000322,15]
[388840975,1759413044175,-151.0,0.00032229,7]
[388840977,1759413044184,-161.93,0.00032231,15]
[388840979,1759413044193,-352.34179519,0.00032232,7]
[388840981,1759413044202,-451.62,0.00032235,15]
[388840983,1759413044211,-5418.02548277,0.00032271,2]
[388840985,1759413044220,-516.13990572,0.00032281,2]
[388840987,1759413044230,-165.95962,0.00032296,35]
[388840989,1759413044239,-5000.0,0.00032296,35]
[388840991,1759413044248,-5000.0,0.00032296,38]
[388840992,1759413044257,-5000.0,0.00032296,35]